fUST/lending_fUST_20240824
["ID","MTS","AMOUNT","RATE_DAILY","PERIOD"]
[335782733,1724490640633,-500.0,0.00013698,2]
[335782735,1724490640643,-500.0,0.00013698,2]
[335782737,1724490640653,-500.0,0.00013698,2]
[335782739,1724490640662,-500.0,0.00013698,2]
[335782741,1724490640671,-500.0,0.00013698,2]
[335782743,1724490640683,-500.0,0.00013698,2]
[335782745,1724490640693,-515.1272377,0.00013698,2]
[335782747,1724490640702,-500.0,0.00013698,2]
[335782749,1724490640712,-540.37,0.00013698,2]
[335782752,1724490640722,-500.0,0.00013698,2]
[335782754,1724490640731,-500.0,0.00013698,2]
[335782756,1724490640741,-500.0,0.00013698,2]
[335782758,1724490640751,-500.0,0.00013698,2]
[335782760,1724490640762,-500.0,0.00013698,2]
[335782762,1724490640771,-500.0,0.00013698,2]
[335782764,1724490640782,-500.0,0.00013698,2]
[335782766,1724490640792,-500.0,0.00013698,2]
[335782768,1724490640802,-500.0,0.00013698,2]
[335782770,1724490640813,-500.0,0.00013698,2]
[335782772,1724490640823,-500.0,0.00013698,2]
[335782775,1724490640835,-500.0,0.00013698,2]
[335782777,1724490640844,-500.0,0.00013698,2]
[335782779,1724490640854,-500.0,0.00013698,2]
[335782781,1724490640863,-805.29,0.00013698,2]
[335782783,1724490640872,-734.16,0.00013698,2]
[335782785,1724490640882,-582.7,0.00013698,2]
[335782787,1724490640893,-775.17,0.00013698,2]
[335782789,1724490640903,-500.0,0.00013698,2]
[335782791,1724490640913,-500.0,0.00013698,2]
[335782793,1724490640922,-500.0,0.00013698,2]
[335782795,1724490640932,-516.55611504,0.00013698,2]
[335782797,1724490640941,-500.0,0.00013698,2]
[335782799,1724490640951,-500.0,0.00013698,2]
[335782801,1724490640960,-499.99680539,0.00013698,2]
[335782803,1724490640970,-500.0,0.00013698,2]
[335782805,1724490640979,-500.0,0.00013698,2]
[335782808,1724490640988,-630.44304182,0.00013698,2]
[335782810,1724490640997,-500.0,0.00013698,2]
[335782812,1724490641007,-500.85815529,0.00013698,2]
[335782814,1724490641020,-500.0,0.00013698,2]
[335782816,1724490641030,-500.0,0.00013698,2]
[335782818,1724490641041,-500.0,0.00013698,2]
[335782820,1724490641051,-500.0,0.00013698,2]
[335782822,1724490641060,-500.0,0.00013698,2]
[335782824,1724490641070,-656.12,0.00013698,2]
[335782826,1724490641079,-500.0,0.00013698,2]
[335782829,1724490641088,-500.0,0.00013698,2]
[335782831,1724490641097,-603.67,0.00013698,2]
[335782833,1724490641106,-500.0,0.00013698,2]
[335782835,1724490641115,-500.0,0.00013698,2]
[335782837,1724490641124,-500.0,0.00013698,2]
[335782838,1724490641133,-599.98714986,0.00013698,2]
[335782840,1724490641142,-500.0,0.00013698,2]
[335782843,1724490641152,-500.0,0.00013698,2]
[335782845,1724490641162,-500.0,0.00013698,2]
[335782847,1724490641171,-500.0,0.00013698,2]
[335782849,1724490641180,-500.0,0.00013698,2]
[335782851,1724490641194,-2198.96,0.00013698,2]
[335782853,1724490641203,-500.0,0.00013698,2]
[335782855,1724490641212,-505.43898382,0.00013698,2]
[335782858,1724490641229,-500.0,0.00013698,2]
[335782860,1724490641245,-574.99,0.00013698,2]
[335782863,1724490641259,-500.0,0.00013698,2]
[335782865,1724490641273,-500.0,0.00013698,2]
[335782868,1724490641287,-569.06,0.00013698,2]
[335782870,1724490641301,-500.0,0.00013698,2]
[335782873,1724490641315,-656.25,0.00013698,2]
[335782875,1724490641329,-500.0,0.00013698,2]
[335782878,1724490641344,-740.78,0.00013698,2]
[335782881,1724490641359,-500.0,0.00013698,2]
[335782883,1724490641374,-500.0,0.00013698,2]
[335782886,1724490641387,-500.0,0.00013698,2]
[335782888,1724490641401,-500.0,0.00013698,2]
[335782891,1724490641416,-527.90559748,0.00013698,2]
[335782893,1724490641429,-500.0,0.00013698,2]
[335782895,1724490641439,-500.0,0.00013698,2]
[335782898,1724490641453,-500.0,0.00013698,2]
[335782900,1724490641467,-585.61,0.00013698,2]
[335782903,1724490641480,-500.0,0.00013698,2]
[335782905,1724490641494,-2313.02,0.00013698,2]
[335782908,1724490641509,-500.0,0.00013698,2]
[335782910,1724490641525,-260.0,0.00013698,2]
[335782912,1724490641538,-1067.2,0.00013698,2]
[335782915,1724490641549,-804.99,0.00013698,2]
[335782917,1724490641560,-880.83,0.00013698,2]
[335782919,1724490641573,-260.0,0.00013698,2]
[335782922,1724490641588,-500.0,0.00013698,2]
[335782924,1724490641602,-258.0,0.00013698,2]
[335782927,1724490641617,-962.58,0.00013698,2]
[335782929,1724490641630,-695.99,0.00013698,2]
[335782932,1724490641648,-500.0,0.00013698,2]
[335782934,1724490641659,-500.0,0.00013698,2]
[335782936,1724490641670,-500.0,0.00013698,2]
[335782938,1724490641682,-500.0,0.00013698,2]
[335782941,1724490641695,-834.01,0.00013698,2]
[335782943,1724490641707,-500.0,0.00013698,2]
[335782945,1724490641720,-500.0,0.00013698,2]
[335782948,1724490641734,-500.0,0.00013698,2]
[335782950,1724490641747,-500.0,0.00013698,2]
[335782952,1724490641761,-500.0,0.00013698,2]
[335782955,1724490641775,-726.63,0.00013698,2]
[335782957,1724490641787,-267.44368958,0.00013698,2]
[335782959,1724490641800,-599.17,0.00013698,2]
[335782961,1724490641813,-1858.45,0.00013698,2]
[335782964,1724490641826,-500.0,0.00013698,2]
[335782966,1724490641838,-510.63,0.00013698,2]
[335782968,1724490641850,-500.0,0.00013698,2]
[335782970,1724490641862,-500.0,0.00013698,2]
[335782973,1724490641875,-2762.13,0.00013698,2]
[335782975,1724490641891,-500.0,0.00013698,2]
[335782977,1724490641904,-500.0,0.00013698,2]
[335782979,1724490641917,-500.0,0.00013698,2]
[335782982,1724490641930,-500.0,0.00013698,2]
[335782984,1724490641943,-500.0,0.00013698,2]
[335782986,1724490641956,-500.0,0.00013698,2]
[335782988,1724490641968,-540.55,0.00013698,2]
[335782991,1724490641980,-500.0,0.00013698,2]
[335782993,1724490641992,-762.93,0.00013698,2]
[335782995,1724490642004,-762.93,0.00013698,2]
[335782998,1724490642016,-762.93,0.00013698,2]
[335783000,1724490642029,-500.0,0.00013698,2]
[335783002,1724490642041,-762.93,0.00013698,2]
[335783004,1724490642053,-762.93,0.00013698,2]
[335783007,1724490642067,-762.93,0.00013698,2]
[335783009,1724490642079,-762.93,0.00013698,2]
[335783012,1724490642092,-500.0,0.00013698,2]
[335783014,1724490642104,-762.93,0.00013698,2]
[335783016,1724490642116,-762.93,0.00013698,2]
[335783018,1724490642128,-762.93,0.00013698,2]
[335783021,1724490642141,-762.93,0.00013698,2]
[335783023,1724490642154,-500.0,0.00013698,2]
[335783025,1724490642165,-714.28,0.00013698,2]
[335783027,1724490642178,-762.93,0.00013698,2]
[335783030,1724490642192,-714.28,0.00013698,2]
[335783032,1724490642204,-762.93,0.00013698,2]
[335783034,1724490642216,-714.28,0.00013698,2]
[335783037,1724490642227,-762.93,0.00013698,2]
[335783039,1724490642239,-714.28,0.00013698,2]
[335783041,1724490642251,-762.93,0.00013698,2]
[335783043,1724490642264,-714.28,0.00013698,2]
[335783046,1724490642277,-762.93,0.00013698,2]
[335783048,1724490642289,-714.28,0.00013698,2]
[335783050,1724490642302,-762.93,0.00013698,2]
[335783053,1724490642313,-714.28,0.00013698,2]
[335783055,1724490642325,-762.93,0.00013698,2]
[335783057,1724490642337,-714.28,0.00013698,2]
[335783060,1724490642349,-762.93,0.00013698,2]
[335783062,1724490642360,-714.28,0.00013698,2]
[335783064,1724490642372,-500.0,0.00013698,2]
[335783067,1724490642386,-714.28,0.00013698,2]
[335783069,1724490642398,-714.28,0.00013698,2]
[335783071,1724490642410,-714.28,0.00013698,2]
[335783073,1724490642422,-500.0,0.00013698,2]
[335783076,1724490642434,-714.28,0.00013698,2]
[335783078,1724490642447,-714.28,0.00013698,2]
[335783080,1724490642459,-714.28,0.00013698,2]
[335783083,1724490642471,-714.28,0.00013698,2]
[335783085,1724490642483,-714.28,0.00013698,2]
[335783087,1724490642495,-714.28,0.00013698,2]
[335783090,1724490642506,-714.28,0.00013698,2]
[335783092,1724490642519,-500.0,0.00013698,2]
[335783094,1724490642531,-714.28,0.00013698,2]
[335783097,1724490642543,-714.28,0.00013698,2]
[335783099,1724490642556,-714.28,0.00013698,2]
[335783101,1724490642567,-714.28,0.00013698,2]
[335783103,1724490642579,-714.39679672,0.00013698,2]
[335783106,1724490642591,-787.89,0.00013698,2]
[335783108,1724490642603,-500.0,0.00013698,2]
[335783110,1724490642616,-500.0,0.00013698,2]
[335783113,1724490642628,-791.31,0.00013698,2]
[335783115,1724490642641,-150.0,0.00013698,2]
[335783117,1724490642652,-500.0,0.00013698,2]
[335783119,1724490642664,-644.75,0.00013698,2]
[335783122,1724490642677,-500.0,0.00013698,2]
[335783124,1724490642689,-500.0,0.00013698,2]
[335783126,1724490642701,-449.81063824,0.00013698,2]
[335783129,1724490642713,-159.93009355,0.00013698,2]
[335783131,1724490642726,-2412.02,0.00013698,2]
[335783133,1724490642738,-500.0,0.00013698,2]
[335783136,1724490642751,-500.0,0.00013698,2]
[335783138,1724490642763,-1028.4,0.00013698,2]
[335783140,1724490642775,-500.0,0.00013698,2]
[335783143,1724490642787,-1848.65,0.00013698,2]
[335783145,1724490642799,-500.0,0.00013698,2]
[335783147,1724490642811,-500.0,0.00013698,2]
[335783149,1724490642824,-500.0,0.00013698,2]
[335783152,1724490642836,-534.06379751,0.00013698,2]
[335783154,1724490642848,-500.0,0.00013698,2]
[335783156,1724490642860,-500.0,0.00013698,2]
[335783158,1724490642871,-500.0,0.00013698,2]
[335783161,1724490642883,-274.31048701,0.00013698,2]
[335783163,1724490642895,-500.0,0.00013698,2]
[335783165,1724490642908,-698.03,0.00013698,2]
[335783168,1724490642920,-881.11,0.00013698,2]
[335783170,1724490642932,-703.42,0.00013698,2]
[335783172,1724490642943,-500.0,0.00013698,2]
[335783173,1724490642955,-521.09788376,0.00013698,2]
[335783174,1724490642967,-767.97,0.00013698,2]
[335783175,1724490642978,-500.0,0.00013698,2]
[335783177,1724490642991,-451.02923329,0.00013698,2]
[335783181,1724490643003,-500.0,0.00013698,2]
[335783184,1724490643015,-500.0,0.00013698,2]
[335783186,1724490643028,-946.24,0.00013698,2]
[335783187,1724490643040,-500.0,0.00013698,2]
[335783188,1724490643050,-500.0,0.00013698,2]
[335783189,1724490643060,-500.0,0.00013698,2]
[335783190,1724490643069,-504.03413542,0.00013698,2]
[335783192,1724490643078,-677.3,0.00013698,2]
[335783194,1724490643087,-1046.01,0.00013698,2]
[335783196,1724490643097,-500.0,0.00013698,2]
[335783198,1724490643107,-500.0,0.00013698,2]
[335783226,1724490643386,-660.2,0.00013698,2]
[335783231,1724490643419,-500.0,0.00013698,2]
[335783233,1724490643435,-500.0,0.00013698,2]
[335783236,1724490643446,-500.0,0.00013698,2]
[335783238,1724490643458,-500.0,0.00013698,2]
[335783240,1724490643467,-500.0,0.00013698,2]
[335783242,1724490643477,-500.0,0.00013698,2]
[335783244,1724490643487,-896.54,0.00013698,2]
[335783246,1724490643496,-500.0,0.00013698,2]
[335783249,1724490643506,-835.51,0.00013698,2]
[335783251,1724490643516,-500.0,0.00013698,2]
[335783253,1724490643525,-748.52,0.00013698,2]
[335783255,1724490643534,-500.0,0.00013698,2]
[335783257,1724490643544,-503.35788423,0.00013698,2]
[335783259,1724490643553,-500.0,0.00013698,2]
[335783261,1724490643563,-500.0,0.00013698,2]
[335783263,1724490643572,-500.0,0.00013698,2]
[335783265,1724490643583,-500.0,0.00013698,2]
[335783267,1724490643592,-500.0,0.00013698,2]
[335783270,1724490643603,-500.0,0.00013698,2]
[335783272,1724490643614,-500.0,0.00013698,2]
[335783274,1724490643624,-500.0,0.00013698,2]
[335783276,1724490643634,-500.0,0.00013698,2]
[335783278,1724490643643,-1293.67,0.00013698,2]
[335783280,1724490643654,-848.57,0.00013698,2]
[335783282,1724490643664,-500.0,0.00013698,2]
[335783284,1724490643673,-500.0,0.00013698,2]
[335783286,1724490643682,-500.0,0.00013698,2]
[335783288,1724490643691,-500.0,0.00013698,2]
[335783290,1724490643700,-500.0,0.00013698,2]
[335783292,1724490643710,-500.0,0.00013698,2]
[335783294,1724490643720,-500.0,0.00013698,2]
[335783296,1724490643730,-500.0,0.00013698,2]
[335783298,1724490643740,-500.0,0.00013698,2]
[335783300,1724490643749,-1582.61,0.00013698,2]
[335783302,1724490643758,-563.9,0.00013698,2]
[335783305,1724490643768,-500.0,0.00013698,2]
[335783307,1724490643779,-500.0,0.00013698,2]
[335783309,1724490643793,-838.47,0.00013698,2]
[335783311,1724490643803,-500.0,0.00013698,2]
[335783313,1724490643814,-500.0,0.00013698,2]
[335783316,1724490643825,-880.6,0.00013698,2]
[335783318,1724490643837,-500.0,0.00013698,2]
[335783320,1724490643847,-504.91863653,0.00013698,2]
[335783322,1724490643856,-500.0,0.00013698,2]
[335783324,1724490643867,-1191.84,0.00013698,2]
[335783326,1724490643876,-509.24,0.00013698,2]
[335783328,1724490643886,-500.0,0.00013698,2]
[335783330,1724490643895,-2324.699907,0.00013698,2]
[335783332,1724490643905,-2324.699907,0.00013698,2]
[335783334,1724490643914,-592.07,0.00013698,2]
[335783336,1724490643924,-500.0,0.00013698,2]
[335783338,1724490643933,-2324.699907,0.00013698,2]
[335783340,1724490643942,-2324.699907,0.00013698,2]
[335783342,1724490643952,-617.04,0.00013698,2]
[335783344,1724490643961,-1446.07,0.00013698,2]
[335783346,1724490643971,-500.0,0.00013698,2]
[335783348,1724490643981,-500.0,0.00013698,2]
[335783350,1724490643990,-500.0,0.00013698,2]
[335783352,1724490644000,-500.0,0.00013698,2]
[335783354,1724490644009,-500.0,0.00013698,2]
[335783356,1724490644019,-500.0,0.00013698,2]
[335783358,1724490644029,-500.0,0.00013698,2]
[335783360,1724490644038,-500.0,0.00013698,2]
[335783362,1724490644047,-500.0,0.00013698,2]
[335783364,1724490644056,-518.31460666,0.00013698,2]
[335783366,1724490644065,-841.51,0.00013698,2]
[335783368,1724490644075,-500.0,0.00013698,2]
[335783370,1724490644084,-500.0,0.00013698,2]
[335783372,1724490644094,-500.0,0.00013698,2]
[335783374,1724490644103,-500.0,0.00013698,2]
[335783376,1724490644112,-500.0,0.00013698,2]
[335783378,1724490644122,-500.0,0.00013698,2]
[335783380,1724490644132,-558.51,0.00013698,2]
[335783382,1724490644141,-500.0,0.00013698,2]
[335783384,1724490644151,-500.0,0.00013698,2]
[335783386,1724490644161,-500.0,0.00013698,2]
[335783388,1724490644170,-500.0,0.00013698,2]
[335783390,1724490644179,-500.0,0.00013698,2]
[335783392,1724490644192,-500.0,0.00013698,2]
[335783394,1724490644201,-447.60060409,0.00013698,2]
[335783396,1724490644210,-663.17,0.00013698,2]
[335783398,1724490644219,-575.68528405,0.00013698,2]
[335783400,1724490644230,-1241.09,0.00013698,2]
[335783403,1724490644240,-500.0,0.00013698,2]
[335783405,1724490644249,-1939.57,0.00013698,2]
[335783407,1724490644259,-653.1,0.00013698,2]
[335783409,1724490644269,-544.84,0.00013698,2]
[335783411,1724490644278,-500.0,0.00013698,2]
[335783413,1724490644287,-578.41,0.00013698,2]
[335783415,1724490644297,-500.0,0.00013698,2]
[335783417,1724490644307,-500.0,0.00013698,2]
[335783419,1724490644316,-835.42,0.00013698,2]
[335783421,1724490644325,-315.43926399,0.00013698,2]
[335783423,1724490644335,-500.0,0.00013698,2]
[335783425,1724490644345,-500.0,0.00013698,2]
[335783427,1724490644354,-500.0,0.00013698,2]
[335783429,1724490644363,-500.0,0.00013698,2]
[335783431,1724490644373,-645.19,0.00013698,2]
[335783433,1724490644382,-500.0,0.00013698,2]
[335783435,1724490644392,-500.0,0.00013698,2]
[335783437,1724490644402,-500.0,0.00013698,2]
[335783440,1724490644413,-977.79,0.00013698,2]
[335783442,1724490644424,-500.0,0.00013698,2]
[335783444,1724490644433,-559.6,0.00013698,2]
[335783446,1724490644443,-500.0,0.00013698,2]
[335783448,1724490644452,-500.0,0.00013698,2]
[335783450,1724490644461,-500.0,0.00013698,2]
[335783452,1724490644470,-500.0,0.00013698,2]
[335783454,1724490644479,-500.0,0.00013698,2]
[335783456,1724490644488,-500.0,0.00013698,2]
[335783458,1724490644497,-881.89,0.00013698,2]
[335783460,1724490644506,-500.51934936,0.00013698,2]
[335783462,1724490644515,-500.0,0.00013698,2]
[335783464,1724490644524,-2704.54,0.00013698,2]
[335783466,1724490644533,-790.02,0.00013698,2]
[335783468,1724490644542,-500.0,0.00013698,2]
[335783470,1724490644551,-522.62,0.00013698,2]
[335783472,1724490644560,-372.73170538,0.00013698,2]
[335783474,1724490644569,-500.0,0.00013698,2]
[335783476,1724490644579,-500.0,0.00013698,2]
[335783478,1724490644588,-500.0,0.00013698,2]
[335783480,1724490644597,-500.0,0.00013698,2]
[335783482,1724490644607,-1217.69,0.00013698,2]
[335783484,1724490644616,-2163.44,0.00013698,2]
[335783486,1724490644626,-500.0,0.00013698,2]
[335783488,1724490644636,-500.0,0.00013698,2]
[335783490,1724490644645,-500.0,0.00013698,2]
[335783492,1724490644655,-500.0,0.00013698,2]
[335783495,1724490644665,-1103.56,0.00013698,2]
[335783497,1724490644675,-500.0,0.00013698,2]
[335783499,1724490644684,-500.0,0.00013698,2]
[335783501,1724490644693,-500.0,0.00013698,2]
[335783503,1724490644702,-668.84,0.00013698,2]
[335783505,1724490644712,-691.03,0.00013698,2]
[335783507,1724490644721,-817.43,0.00013698,2]
[335783509,1724490644730,-1172.01,0.00013698,2]
[335783511,1724490644739,-500.0,0.00013698,2]
[335783513,1724490644749,-757.8,0.00013698,2]
[335783515,1724490644758,-949.95,0.00013698,2]
[335783517,1724490644767,-810.32,0.00013698,2]
[335783519,1724490644777,-500.0,0.00013698,2]
[335783521,1724490644786,-1198.3,0.00013698,2]
[335783523,1724490644795,-500.0,0.00013698,2]
[335783525,1724490644805,-934.44,0.00013698,2]
[335783527,1724490644814,-1017.53,0.00013698,2]
[335783529,1724490644823,-500.0,0.00013698,2]
[335783531,1724490644832,-500.0,0.00013698,2]
[335783533,1724490644842,-500.0,0.00013698,2]
[335783535,1724490644852,-500.0,0.00013698,2]
[335783537,1724490644861,-500.0,0.00013698,2]
[335783539,1724490644871,-500.0,0.00013698,2]
[335783541,1724490644880,-500.0,0.00013698,2]
[335783543,1724490644891,-500.0,0.00013698,2]
[335783545,1724490644900,-500.0,0.00013698,2]
[335783547,1724490644910,-500.0,0.00013698,2]
[335783549,1724490644920,-500.0,0.00013698,2]
[335783551,1724490644930,-500.0,0.00013698,2]
[335783554,1724490644939,-500.0,0.00013698,2]
[335783556,1724490644950,-500.0,0.00013698,2]
[335783558,1724490644961,-500.0,0.00013698,2]
[335783560,1724490644970,-500.0,0.00013698,2]
[335783562,1724490644979,-500.0,0.00013698,2]
[335783564,1724490644988,-500.0,0.00013698,2]
[335783566,1724490644998,-283.12035407,0.00013698,2]
[335783568,1724490645008,-500.0,0.00013698,2]
[335783570,1724490645017,-1854.5,0.00013698,2]
[335783572,1724490645029,-500.0,0.00013698,2]
[335783575,1724490645038,-501.86672795,0.00013698,2]
[335783576,1724490645047,-500.0,0.00013698,2]
[335783579,1724490645056,-500.0,0.00013698,2]
[335783581,1724490645066,-500.0,0.00013698,2]
[335783583,1724490645076,-500.0,0.00013698,2]
[335783585,1724490645086,-683.98,0.00013698,2]
[335783587,1724490645095,-500.0,0.00013698,2]
[335783589,1724490645105,-500.0,0.00013698,2]
[335783591,1724490645114,-500.0,0.00013698,2]
[335783593,1724490645123,-500.0,0.00013698,2]
[335783595,1724490645132,-500.0,0.00013698,2]
[335783597,1724490645143,-542.60168054,0.00013698,2]
[335783599,1724490645152,-500.0,0.00013698,2]
[335783601,1724490645162,-500.0,0.00013698,2]
[335783603,1724490645171,-500.0,0.00013698,2]
[335783605,1724490645180,-1010.5,0.00013698,2]
[335783607,1724490645194,-628.71,0.00013698,2]
[335783609,1724490645203,-500.0,0.00013698,2]
[335783611,1724490645213,-500.0,0.00013698,2]
[335783613,1724490645222,-1113.61,0.00013698,2]
[335783616,1724490645232,-529.08,0.00013698,2]
[335783618,1724490645242,-510.16,0.00013698,2]
[335783620,1724490645251,-500.0,0.00013698,2]
[335783622,1724490645261,-742.59,0.00013698,2]
[335783624,1724490645273,-501.35155916,0.00013698,2]
[335783626,1724490645284,-582.81026484,0.00013698,2]
[335783628,1724490645293,-500.0,0.00013698,2]
[335783630,1724490645302,-797.01,0.00013698,2]
[335783632,1724490645312,-500.0,0.00013698,2]
[335783634,1724490645321,-500.0,0.00013698,2]
[335783636,1724490645330,-1164.74,0.00013698,2]
[335783638,1724490645339,-500.0,0.00013698,2]
[335783640,1724490645349,-500.0,0.00013698,2]
[335783642,1724490645358,-524.10641745,0.00013698,2]
[335783644,1724490645367,-500.0,0.00013698,2]
[335783646,1724490645377,-500.0,0.00013698,2]
[335783648,1724490645387,-531.27393272,0.00013698,2]
[335783650,1724490645396,-500.0,0.00013698,2]
[335783652,1724490645405,-500.0,0.00013698,2]
[335783654,1724490645415,-1419.11,0.00013698,2]
[335783657,1724490645427,-1918.72,0.00013698,2]
[335783659,1724490645438,-500.0,0.00013698,2]
[335783661,1724490645448,-500.0,0.00013698,2]
[335783663,1724490645460,-532.58,0.00013698,2]
[335783665,1724490645469,-532.58,0.00013698,2]
[335783667,1724490645478,-532.58,0.00013698,2]
[335783669,1724490645487,-500.0,0.00013698,2]
[335783671,1724490645497,-532.58,0.00013698,2]
[335783673,1724490645506,-532.58,0.00013698,2]
[335783675,1724490645515,-532.58,0.00013698,2]
[335783677,1724490645524,-532.58,0.00013698,2]
[335783679,1724490645533,-532.58,0.00013698,2]
[335783681,1724490645542,-532.58,0.00013698,2]
[335783683,1724490645553,-532.58,0.00013698,2]
[335783685,1724490645563,-1318.57,0.00013698,2]
[335783687,1724490645573,-532.58,0.00013698,2]
[335783689,1724490645582,-532.58,0.00013698,2]
[335783691,1724490645592,-532.58,0.00013698,2]
[335783693,1724490645601,-532.58,0.00013698,2]
[335783695,1724490645611,-532.58,0.00013698,2]
[335783697,1724490645620,-532.58,0.00013698,2]
[335783699,1724490645629,-500.0,0.00013698,2]
[335783701,1724490645639,-500.0,0.00013698,2]
[335783703,1724490645649,-500.0,0.00013698,2]
[335783705,1724490645659,-504.19437505,0.00013698,2]
[335783707,1724490645668,-500.0,0.00013698,2]
[335783709,1724490645679,-500.0,0.00013698,2]
[335783712,1724490645688,-500.0,0.00013698,2]
[335783714,1724490645698,-500.0,0.00013698,2]
[335783716,1724490645707,-500.0,0.00013698,2]
[335783718,1724490645716,-1902.58,0.00013698,2]
[335783720,1724490645726,-605.55,0.00013698,2]
[335783722,1724490645735,-1421.34,0.00013698,2]
[335783724,1724490645745,-253.09911784,0.00013698,2]
[335783726,1724490645755,-500.0,0.00013698,2]
[335783728,1724490645764,-500.37040333,0.00013698,2]
[335783730,1724490645773,-377.1852082,0.00013698,2]
[335783732,1724490645782,-500.0,0.00013698,2]
[335783734,1724490645792,-500.0,0.00013698,2]
[335783736,1724490645800,-1236.98,0.00013698,2]
[335783738,1724490645809,-500.0,0.00013698,2]
[335783739,1724490645819,-1057.72,0.00013698,2]
[335783741,1724490645828,-500.0,0.00013698,2]
[335783742,1724490645837,-500.0,0.00013698,2]
[335783743,1724490645847,-500.0,0.00013698,2]
[335783744,1724490645857,-500.0,0.00013698,2]
[335783745,1724490645867,-500.0,0.00013698,2]
[335783746,1724490645876,-500.0,0.00013698,2]
[335783747,1724490645885,-500.0,0.00013698,2]
[335783748,1724490645895,-669.96,0.00013698,2]
[335783749,1724490645905,-500.0,0.00013698,2]
[335783750,1724490645914,-502.33681626,0.00013698,2]
[335783751,1724490645923,-1152.52,0.00013698,2]
[335783753,1724490645932,-500.0,0.00013698,2]
[335783756,1724490645942,-500.0,0.00013698,2]
[335783759,1724490645951,-500.0,0.00013698,2]
[335783762,1724490645962,-500.0,0.00013698,2]
[335783764,1724490645971,-500.0,0.00013698,2]
[335783766,1724490645981,-524.03413021,0.00013698,2]
[335783768,1724490645990,-500.0,0.00013698,2]
[335783770,1724490646000,-926.67,0.00013698,2]
[335783772,1724490646009,-500.0,0.00013698,2]
[335783774,1724490646019,-514.66,0.00013698,2]
[335783776,1724490646029,-872.69,0.00013698,2]
[335783778,1724490646039,-500.0,0.00013698,2]
[335783780,1724490646048,-546.66878442,0.00013698,2]
[335783782,1724490646060,-500.0,0.00013698,2]
[335783784,1724490646070,-500.0,0.00013698,2]
[335783786,1724490646080,-500.0,0.00013698,2]
[335783788,1724490646090,-704.64,0.00013698,2]
[335783790,1724490646100,-388.01515087,0.00013698,2]
[335783792,1724490646109,-500.0,0.00013698,2]
[335783794,1724490646119,-500.0,0.00013698,2]
[335783797,1724490646128,-500.0,0.00013698,2]
[335783799,1724490646139,-500.0,0.00013698,2]
[335783801,1724490646148,-500.0,0.00013698,2]
[335783803,1724490646158,-500.0,0.00013698,2]
[335783805,1724490646168,-991.19,0.00013698,2]
[335783807,1724490646178,-718.33,0.00013698,2]
[335783809,1724490646189,-500.0,0.00013698,2]
[335783811,1724490646200,-500.0,0.00013698,2]